fUST/lending_fUST_20250606
["ID","MTS","AMOUNT","RATE_DAILY","PERIOD"]
[364658409,1749187838520,-420.0,0.00022191,2]
[364658410,1749187838530,-420.0,0.00022191,2]
[364658411,1749187838542,-440.0,0.00022191,2]
[364658412,1749187838556,-440.0,0.00022191,2]
[364658413,1749187838568,-420.0,0.00022191,2]
[364658414,1749187838580,-440.0,0.00022191,2]
[364658415,1749187838592,-440.0,0.00022191,2]
[364658416,1749187838605,-440.0,0.00022191,2]
[364658417,1749187838617,-440.0,0.00022191,2]
[364658418,1749187838630,-440.0,0.00022191,2]
[364658419,1749187838643,-420.0,0.00022191,2]
[364658420,1749187838656,-440.0,0.00022191,2]
[364658421,1749187838669,-440.0,0.00022191,2]
[364658422,1749187838681,-440.0,0.00022191,2]
[364658423,1749187838691,-344.13332259,0.00022191,2]
[364658424,1749187838702,-440.0,0.00022191,2]
[364658425,1749187838712,-440.0,0.00022191,2]
[364658426,1749187838723,-440.0,0.00022191,2]
[364658427,1749187838735,-440.0,0.00022191,2]
[364658428,1749187838748,-487.77790784,0.00022191,2]
[364658429,1749187838761,-420.0,0.00022191,2]
[364658430,1749187838772,-440.0,0.00022191,2]
[364658431,1749187838782,-440.0,0.00022191,2]
[364658432,1749187838794,-458.10995854,0.00022191,2]
[364658433,1749187838805,-420.0,0.00022191,2]
[364658434,1749187838816,-437.84474659,0.00022191,2]
[364658435,1749187838829,-500.01008844,0.00022191,2]
[364658436,1749187838839,-440.0,0.00022191,2]
[364658437,1749187838850,-420.0,0.00022191,2]
[364658438,1749187838861,-440.0,0.00022191,2]
[364658439,1749187838872,-453.35736995,0.00022191,2]
[364658440,1749187838884,-440.0,0.00022191,2]
[364658441,1749187838895,-440.0,0.00022191,2]
[364658442,1749187838906,-440.0,0.00022191,2]
[364658443,1749187838917,-430.10416159,0.00022191,2]
[364658444,1749187838928,-440.0,0.00022191,2]
[364658445,1749187838940,-440.0,0.00022191,2]
[364658446,1749187838951,-440.0,0.00022191,2]
[364658447,1749187838963,-440.0,0.00022191,2]
[364658448,1749187838974,-440.0,0.00022191,2]
[364658449,1749187838985,-430.26183374,0.00022191,2]
[364658450,1749187838996,-440.0,0.00022191,2]
[364658451,1749187839007,-440.0,0.00022191,2]
[364658452,1749187839018,-440.0,0.00022191,2]
[364658453,1749187839028,-440.0,0.00022191,2]
[364658454,1749187839038,-440.0,0.00022191,2]
[364658455,1749187839049,-431.6,0.00022191,2]
[364658456,1749187839059,-440.0,0.00022191,2]
[364658457,1749187839070,-420.0,0.00022191,2]
[364658458,1749187839081,-209.54328878,0.00022191,2]
[364658459,1749187839092,-440.0,0.00022191,2]
[364658460,1749187839103,-440.0,0.00022191,2]
[364658461,1749187839113,-440.0,0.00022191,2]
[364658462,1749187839124,-500.0,0.00022191,2]
[364658463,1749187839134,-440.0,0.00022191,2]
[364658464,1749187839145,-420.0,0.00022191,2]
[364658465,1749187839156,-420.0,0.00022191,2]
[364658466,1749187839168,-420.0,0.00022191,2]
[364658467,1749187839178,-440.0,0.00022191,2]
[364658468,1749187839189,-440.0,0.00022191,2]
[364658469,1749187839201,-191.88,0.00022191,2]
[364658470,1749187839211,-440.0,0.00022191,2]
[364658471,1749187839223,-326.36575674,0.00022191,2]
[364658472,1749187839234,-440.0,0.00022191,2]
[364658473,1749187839245,-440.0,0.00022191,2]
[364658474,1749187839256,-440.0,0.00022191,2]
[364658475,1749187839267,-197.5276661,0.00022191,2]
[364658476,1749187839278,-892.97,0.00022191,2]
[364658477,1749187839289,-440.0,0.00022191,2]
[364658478,1749187839300,-440.0,0.00022191,2]
[364658479,1749187839311,-440.0,0.00022191,2]
[364658480,1749187839323,-440.0,0.00022191,2]
[364658481,1749187839334,-440.0,0.00022191,2]
[364658482,1749187839346,-420.0,0.00022191,2]
[364658483,1749187839357,-440.0,0.00022191,2]
[364658484,1749187839370,-437.04212217,0.00022191,2]
[364658485,1749187839381,-440.0,0.00022191,2]
[364658486,1749187839391,-420.41370067,0.00022191,2]
[364658487,1749187839406,-440.0,0.00022191,2]
[364658488,1749187839417,-420.0,0.00022191,2]
[364658489,1749187839429,-420.0,0.00022191,2]
[364658492,1749187839440,-440.0,0.00022191,2]
[364658494,1749187839452,-440.0,0.00022191,2]
[364658496,1749187839463,-420.0,0.00022191,2]
[364658498,1749187839474,-420.0,0.00022191,2]
[364658512,1749187839600,-440.0,0.00022191,2]
[364658514,1749187839614,-420.0,0.00022191,2]
[364658516,1749187839624,-440.0,0.00022191,2]
[364658518,1749187839633,-426.47297212,0.00022191,2]
[364658520,1749187839643,-440.0,0.00022191,2]
[364658522,1749187839652,-440.0,0.00022191,2]
[364658524,1749187839662,-440.0,0.00022191,2]
[364658526,1749187839671,-440.0,0.00022191,2]
[364658528,1749187839681,-440.0,0.00022191,2]
[364658530,1749187839691,-440.0,0.00022191,2]
[364658531,1749187839700,-589.0,0.00022191,2]
[364658533,1749187839710,-420.0,0.00022191,2]
[364658535,1749187839720,-440.0,0.00022191,2]
[364658538,1749187839730,-440.0,0.00022191,2]
[364658541,1749187839740,-429.25800192,0.00022191,2]
[364658544,1749187839750,-440.0,0.00022191,2]
[364658547,1749187839759,-440.0,0.00022191,2]
[364658550,1749187839769,-443.15301808,0.00022191,2]
[364658553,1749187839779,-440.0,0.00022191,2]
[364658555,1749187839789,-420.0,0.00022191,2]
[364658557,1749187839798,-440.0,0.00022191,2]
[364658559,1749187839807,-420.0,0.00022191,2]
[364658561,1749187839817,-259.40985428,0.00022191,2]
[364658563,1749187839826,-440.0,0.00022191,2]
[364658565,1749187839836,-440.0,0.00022191,2]
[364658567,1749187839846,-461.45120371,0.00022191,2]
[364658569,1749187839855,-440.0,0.00022191,2]
[364658571,1749187839865,-420.0,0.00022191,2]
[364658573,1749187839875,-440.0,0.00022191,2]
[364658575,1749187839884,-440.0,0.00022191,2]
[364658578,1749187839894,-440.0,0.00022191,2]
[364658581,1749187839903,-417.8171995,0.00022191,2]
[364658583,1749187839913,-426.93167448,0.00022191,2]
[364658585,1749187839922,-440.0,0.00022191,2]
[364658587,1749187839932,-440.0,0.00022191,2]
[364658589,1749187839942,-440.0,0.00022191,2]
[364658591,1749187839951,-440.0,0.00022191,2]
[364658592,1749187839961,-420.0,0.00022191,2]
[364658594,1749187839971,-440.0,0.00022191,2]
[364658596,1749187839980,-440.0,0.00022191,2]
[364658598,1749187839990,-447.11,0.00022191,2]
[364658599,1749187839999,-440.0,0.00022191,2]
[364658600,1749187840009,-250.60234251,0.00022191,2]
[364658602,1749187840019,-365.10541278,0.00022191,2]
[364658604,1749187840028,-204.04793499,0.00022191,2]
[364658606,1749187840038,-440.64006613,0.00022191,2]
[364658610,1749187840047,-420.0,0.00022191,2]
[364658612,1749187840056,-430.09113496,0.00022191,2]
[364658615,1749187840067,-440.0,0.00022191,2]
[364658617,1749187840076,-420.0,0.00022191,2]
[364658620,1749187840086,-440.0,0.00022191,2]
[364658623,1749187840096,-253.08,0.00022191,2]
[364658626,1749187840105,-440.0,0.00022191,2]
[364658629,1749187840115,-412.68659208,0.00022191,2]
[364658632,1749187840124,-292.0483291,0.00022191,2]
[364658635,1749187840134,-461.37969676,0.00022191,2]
[364658638,1749187840144,-186.56,0.00022191,2]
[364658641,1749187840153,-469.19825307,0.00022191,2]
[364658644,1749187840163,-440.0,0.00022191,2]
[364658647,1749187840172,-492.42426048,0.00022191,2]
[364658650,1749187840181,-440.0,0.00022191,2]
[364658653,1749187840192,-440.0,0.00022191,2]
[364658657,1749187840201,-440.0,0.00022191,2]
[364658660,1749187840212,-440.0,0.00022191,2]
[364658663,1749187840221,-564.35974314,0.00022191,2]
[364658665,1749187840231,-440.0,0.00022191,2]
[364658668,1749187840240,-500.0,0.00022191,2]
[364658671,1749187840249,-420.0,0.00022191,2]
[364658674,1749187840258,-440.0,0.00022191,2]
[364658677,1749187840268,-412.71157011,0.00022191,2]
[364658679,1749187840277,-440.0,0.00022191,2]
[364658682,1749187840287,-440.0,0.00022191,2]
[364658685,1749187840296,-500.0,0.00022191,2]
[364658688,1749187840305,-440.0,0.00022191,2]
[364658691,1749187840314,-420.0,0.00022191,2]
[364658694,1749187840327,-322.51900637,0.00022191,2]
[364658697,1749187840337,-440.0,0.00022191,2]
[364658700,1749187840347,-440.0,0.00022191,2]
[364658703,1749187840356,-440.0,0.00022191,2]
[364658706,1749187840366,-440.0,0.00022191,2]
[364658709,1749187840375,-440.0,0.00022191,2]
[364658712,1749187840385,-440.0,0.00022191,2]
[364658715,1749187840396,-440.0,0.00022191,2]
[364658718,1749187840405,-426.18303345,0.00022191,2]
[364658721,1749187840415,-426.49164404,0.00022191,2]
[364658723,1749187840424,-440.0,0.00022191,2]
[364658726,1749187840434,-318.16,0.00022191,2]
[364658729,1749187840443,-440.0,0.00022465,2]
[364658732,1749187840452,-440.0,0.00022465,2]
[364658735,1749187840462,-316.17725696,0.00022465,2]
[364658738,1749187840471,-302.91,0.00022465,2]
[364658741,1749187840481,-410.0,0.00022465,2]
[364658744,1749187840492,-440.0,0.00022465,2]
[364658747,1749187840501,-440.0,0.00022465,2]
[364658750,1749187840510,-449.62792418,0.00022465,2]
[364658753,1749187840519,-440.0,0.00022465,2]
[364658756,1749187840529,-512.52,0.00022465,2]
[364658759,1749187840539,-437.67069498,0.00022465,2]
[364658762,1749187840549,-410.0,0.00022465,2]
[364658765,1749187840559,-505.1224452,0.00022465,2]
[364658768,1749187840569,-440.0,0.00022465,2]
[364658771,1749187840579,-440.0,0.00022465,2]
[364658774,1749187840589,-440.0,0.00022465,2]
[364658777,1749187840599,-440.0,0.00022465,2]
[364658780,1749187840609,-440.0,0.00022465,2]
[364658783,1749187840620,-440.0,0.00022465,2]
[364658786,1749187840630,-440.0,0.00022465,2]
[364658789,1749187840640,-410.0,0.00022465,2]
[364658792,1749187840650,-440.0,0.00022465,2]
[364658795,1749187840659,-410.0,0.00022465,2]
[364658798,1749187840669,-440.0,0.00022465,2]
[364658801,1749187840678,-238.18,0.00022465,2]
[364658804,1749187840688,-440.0,0.00022465,2]
[364658807,1749187840697,-440.0,0.00022465,2]
[364658810,1749187840707,-422.67796825,0.00022465,2]
[364658812,1749187840717,-440.0,0.00022465,2]
[364658815,1749187840727,-410.0,0.00022465,2]
[364658818,1749187840737,-440.0,0.00022465,2]
[364658821,1749187840747,-451.994809,0.00022465,2]
[364658824,1749187840756,-440.0,0.00022465,2]
[364658827,1749187840766,-440.0,0.00022465,2]
[364658830,1749187840777,-440.0,0.00022465,2]
[364658833,1749187840787,-421.27121487,0.00022465,2]
[364658836,1749187840797,-440.0,0.00022465,2]
[364658839,1749187840806,-221.73533407,0.00022465,2]
[364658842,1749187840816,-440.0,0.00022465,2]
[364658845,1749187840825,-577.39716575,0.00022465,2]
[364658848,1749187840835,-440.0,0.00022465,2]
[364658851,1749187840845,-440.0,0.00022465,2]
[364658854,1749187840855,-440.0,0.00022465,2]
[364658857,1749187840865,-440.0,0.00022465,2]
[364658860,1749187840875,-440.0,0.00022465,2]
[364658862,1749187840885,-440.0,0.00022465,2]
[364658864,1749187840894,-440.0,0.00022465,2]
[364658866,1749187840905,-440.0,0.00022465,2]
[364658868,1749187840914,-440.0,0.00022465,2]
[364658871,1749187840924,-440.0,0.00022465,2]
[364658874,1749187840935,-440.0,0.00022465,2]
[364658877,1749187840945,-892.97,0.00022465,2]
[364658880,1749187840955,-225.6,0.00022465,2]
[364658883,1749187840965,-440.0,0.00022465,2]
[364658886,1749187840974,-440.0,0.00022465,2]
[364658889,1749187840984,-302.88,0.00022465,2]
[364658892,1749187840994,-440.0,0.00022465,2]
[364658895,1749187841003,-440.0,0.00022465,2]
[364658898,1749187841013,-440.0,0.00022465,2]
[364658901,1749187841026,-440.0,0.00022465,2]
[364658904,1749187841035,-502.8634833,0.00022465,2]
[364658907,1749187841044,-440.0,0.00022465,2]
[364658910,1749187841054,-440.0,0.00022465,2]
[364658913,1749187841063,-440.0,0.00022465,2]
[364658916,1749187841073,-440.0,0.00022465,2]
[364658919,1749187841083,-440.0,0.00022465,2]
[364658922,1749187841093,-440.0,0.00022465,2]
[364658925,1749187841103,-188.57,0.00022465,2]
[364658928,1749187841113,-440.0,0.00022465,2]
[364658931,1749187841122,-440.0,0.00022465,2]
[364658934,1749187841132,-440.0,0.00022465,2]
[364658936,1749187841142,-440.0,0.00022465,2]
[364658939,1749187841152,-440.0,0.00022465,2]
[364658942,1749187841161,-440.0,0.00022465,2]
[364658945,1749187841172,-431.50363553,0.00022465,2]
[364658948,1749187841181,-410.0,0.00022465,2]
[364658951,1749187841191,-284.22,0.00022465,2]
[364658954,1749187841201,-440.0,0.00022465,2]
[364658957,1749187841210,-440.0,0.00022465,2]
[364658960,1749187841219,-249.58600549,0.00022465,2]
[364658963,1749187841229,-440.0,0.00022465,2]
[364658966,1749187841238,-425.14670364,0.00022465,2]
[364658969,1749187841248,-416.60727525,0.00022465,2]
[364658972,1749187841257,-523.64,0.00022465,2]
[364658975,1749187841266,-440.0,0.00022465,2]
[364658978,1749187841277,-440.0,0.00022465,2]
[364658981,1749187841286,-440.0,0.00022465,2]
[364658984,1749187841296,-440.0,0.00022465,2]
[364658987,1749187841306,-440.0,0.00022465,2]
[364658990,1749187841317,-440.0,0.00022465,2]
[364658993,1749187841331,-440.0,0.00022465,2]
[364658996,1749187841341,-440.0,0.00022465,2]
[364658999,1749187841352,-440.0,0.00022465,2]
[364659002,1749187841364,-440.0,0.00022465,2]
[364659005,1749187841377,-182.86,0.00022465,2]
[364659008,1749187841386,-440.0,0.00022465,2]
[364659011,1749187841396,-440.0,0.00022465,2]
[364659014,1749187841408,-269.29,0.00022465,2]
[364659017,1749187841418,-500.0,0.00022465,2]
[364659020,1749187841428,-440.0,0.00022465,2]
[364659023,1749187841437,-481.09436803,0.00022465,2]
[364659026,1749187841447,-440.0,0.00022465,2]
[364659029,1749187841457,-500.0,0.00022465,2]
[364659032,1749187841466,-440.0,0.00022465,2]
[364659035,1749187841475,-440.0,0.00022465,2]
[364659038,1749187841485,-440.0,0.00022465,2]
[364659041,1749187841494,-440.0,0.00022465,2]
[364659044,1749187841503,-440.0,0.00022465,2]
[364659047,1749187841512,-440.0,0.00022465,2]
[364659050,1749187841521,-160.7259297,0.00022465,2]
[364659053,1749187841530,-440.0,0.00022465,2]
[364659056,1749187841540,-440.0,0.00022465,2]
[364659059,1749187841549,-921.10379047,0.00022557,2]
[364659062,1749187841557,-1334.03880503,0.00022675,2]
[364659064,1749187841566,-1334.03880503,0.00022691,2]
[364659067,1749187841575,-1334.03880503,0.00022725,2]
[364659070,1749187841584,-1334.03880503,0.0002273,2]
[364659073,1749187841595,-440.0,0.00022739,2]
[364659076,1749187841604,-440.0,0.00022739,2]
[364659079,1749187841612,-440.0,0.00022739,2]
[364659082,1749187841621,-440.0,0.00022739,2]
[364659084,1749187841630,-489.28297048,0.00022739,2]
[364659086,1749187841640,-400.0,0.00022739,2]
[364659088,1749187841653,-397.24,0.00022739,2]
[364659090,1749187841667,-427.2650657,0.00022739,2]
[364659092,1749187841675,-428.32705248,0.00022739,2]
[364659094,1749187841684,-412.48814772,0.00022739,2]
[364659096,1749187841692,-440.0,0.00022739,2]
[364659098,1749187841701,-440.0,0.00022739,2]
[364659100,1749187841709,-440.0,0.00022739,2]
[364659102,1749187841718,-408.72586793,0.00022739,2]
[364659104,1749187841727,-440.0,0.00022739,2]
[364659106,1749187841736,-440.0,0.00022739,2]
[364659108,1749187841745,-440.0,0.00022739,2]
[364659110,1749187841755,-440.0,0.00022739,2]
[364659112,1749187841764,-225.46,0.00022739,2]
[364659114,1749187841773,-410.99535333,0.00022739,2]
[364659116,1749187841783,-400.0,0.00022739,2]
[364659118,1749187841792,-253.84241964,0.00022739,2]
[364659120,1749187841801,-440.0,0.00022739,2]
[364659122,1749187841811,-440.0,0.00022739,2]
[364659124,1749187841820,-400.0,0.00022739,2]
[364659126,1749187841829,-400.0,0.00022739,2]
[364659128,1749187841840,-400.0,0.00022739,2]
[364659130,1749187841849,-440.0,0.00022739,2]
[364659132,1749187841858,-440.0,0.00022739,2]
[364659134,1749187841867,-440.0,0.00022739,2]
[364659136,1749187841877,-440.0,0.00022739,2]
[364659138,1749187841886,-440.0,0.00022739,2]
[364659140,1749187841895,-189.78709743,0.00022739,2]
[364659142,1749187841905,-440.0,0.00022739,2]
[364659144,1749187841914,-892.97,0.00022739,2]
[364659146,1749187841923,-440.0,0.00022739,2]
[364659148,1749187841932,-440.0,0.00022739,2]
[364659150,1749187841942,-440.0,0.00022739,2]
[364659152,1749187841952,-246.94,0.00022739,2]
[364659154,1749187841961,-400.0,0.00022739,2]
[364659156,1749187841970,-440.0,0.00022739,2]
[364659158,1749187841980,-440.0,0.00022739,2]
[364659160,1749187841990,-440.0,0.00022739,2]
[364659162,1749187841999,-440.0,0.00022739,2]
[364659164,1749187842008,-400.0,0.00022739,2]
[364659166,1749187842018,-440.0,0.00022739,2]
[364659168,1749187842026,-440.0,0.00022739,2]
[364659170,1749187842036,-228.085613,0.00022739,2]
[364659172,1749187842045,-416.13870317,0.00022739,2]
[364659174,1749187842055,-440.0,0.00022739,2]
[364659176,1749187842064,-440.0,0.00022739,2]
[364659178,1749187842074,-440.0,0.00022739,2]
[364659180,1749187842083,-440.0,0.00022739,2]
[364659182,1749187842092,-440.0,0.00022739,2]
[364659184,1749187842102,-440.0,0.00022739,2]
[364659186,1749187842111,-440.0,0.00022739,2]
[364659188,1749187842120,-440.0,0.00022739,2]
[364659190,1749187842129,-183.84370742,0.00022739,2]
[364659201,1749187842223,-518.80157377,0.00022739,2]
[364659203,1749187842243,-440.0,0.00022739,2]
[364659205,1749187842252,-440.0,0.00022739,2]
[364659207,1749187842262,-440.0,0.00022739,2]
[364659209,1749187842272,-440.0,0.00022739,2]
[364659211,1749187842281,-440.0,0.00022739,2]
[364659213,1749187842290,-440.0,0.00022739,2]
[364659215,1749187842300,-494.09,0.00022739,2]
[364659217,1749187842309,-440.0,0.00022739,2]
[364659219,1749187842318,-440.0,0.00022739,2]
[364659221,1749187842332,-500.0,0.00022739,2]
[364659223,1749187842341,-440.0,0.00022739,2]
[364659225,1749187842351,-440.0,0.00022739,2]
[364659226,1749187842360,-500.0,0.00022739,2]
[364659228,1749187842371,-440.0,0.00022739,2]
[364659230,1749187842381,-440.0,0.00022739,2]
[364659232,1749187842390,-440.0,0.00022739,2]
[364659234,1749187842400,-501.77443652,0.00022739,2]
[364659236,1749187842410,-440.0,0.00022739,2]
[364659238,1749187842419,-440.0,0.00022739,2]
[364659240,1749187842428,-440.0,0.00022739,2]
[364659242,1749187842439,-419.37128976,0.00022739,2]
[364659244,1749187842448,-1334.03880503,0.00022745,2]
[364659246,1749187842457,-1334.03880503,0.00022794,2]
[364659248,1749187842467,-221.43926187,0.00022801,2]
[364659250,1749187842476,-1334.03880503,0.00022809,2]
[364659252,1749187842485,-1334.03880503,0.0002284,2]
[364659254,1749187842495,-569.83785469,0.00022859,2]
[364659265,1749187842599,-764.20095034,0.00022859,2]
[364659267,1749187842609,-1334.03880503,0.0002287,2]
[364659269,1749187842619,-1334.03880503,0.00022876,2]
[364659271,1749187842628,-1334.03880503,0.00022886,2]
[364659274,1749187842637,-1334.03880503,0.00022898,2]
[364659276,1749187842647,-202.48018423,0.000229,8]
[364659278,1749187842656,-1334.03880503,0.00022942,2]
[364659280,1749187842666,-1334.03880503,0.00022958,2]
[364659282,1749187842676,-202.48018403,0.00022969,8]
[364659285,1749187842686,-1334.03880503,0.00022969,2]
[364659288,1749187842695,-512.160946,0.00023013,2]
[364659290,1749187842705,-440.0,0.00023013,2]
[364659292,1749187842715,-394.70235338,0.00023013,2]
[364659294,1749187842724,-440.0,0.00023013,2]
[364659296,1749187842734,-390.0,0.00023013,2]
[364659297,1749187842744,-390.0,0.00023013,2]
[364659300,1749187842755,-390.0,0.00023013,2]
[364659301,1749187842765,-490.18,0.00023013,2]
[364659304,1749187842774,-390.0,0.00023013,2]
[364659306,1749187842783,-419.33422458,0.00023013,2]
[364659308,1749187842792,-440.0,0.00023013,2]
[364659310,1749187842802,-405.56953815,0.00023013,2]
[364659312,1749187842811,-440.0,0.00023013,2]
[364659314,1749187842821,-440.0,0.00023013,2]
[364659316,1749187842831,-390.0,0.00023013,2]
[364659318,1749187842840,-440.0,0.00023013,2]
[364659320,1749187842849,-440.0,0.00023013,2]
[364659322,1749187842858,-397.08,0.00023013,2]
[364659324,1749187842868,-892.97,0.00023013,2]
[364659326,1749187842877,-440.0,0.00023013,2]
[364659328,1749187842887,-440.0,0.00023013,2]
[364659330,1749187842897,-440.0,0.00023013,2]
[364659332,1749187842906,-440.0,0.00023013,2]
[364659333,1749187842916,-440.0,0.00023013,2]
[364659335,1749187842925,-448.25,0.00023013,2]
[364659337,1749187842935,-440.0,0.00023013,2]
[364659339,1749187842945,-390.0,0.00023013,2]
[364659341,1749187842955,-440.0,0.00023013,2]
[364659343,1749187842964,-440.0,0.00023013,2]
[364659345,1749187842974,-390.0,0.00023013,2]
[364659347,1749187842983,-390.0,0.00023013,2]
[364659349,1749187842992,-390.0,0.00023013,2]
[364659351,1749187843002,-440.0,0.00023013,2]
[364659353,1749187843011,-329.53613733,0.00023013,2]
[364659355,1749187843021,-196.04,0.00023013,2]
[364659357,1749187843030,-390.0,0.00023013,2]
[364659359,1749187843039,-440.0,0.00023013,2]
[364659361,1749187843048,-440.0,0.00023013,2]
[364659363,1749187843058,-440.0,0.00023013,2]
[364659365,1749187843068,-440.0,0.00023013,2]
[364659367,1749187843077,-440.0,0.00023013,2]
[364659369,1749187843087,-390.0,0.00023013,2]
[364659371,1749187843098,-390.0,0.00023013,2]
[364659372,1749187843107,-440.0,0.00023013,2]
[364659374,1749187843117,-440.0,0.00023013,2]
[364659376,1749187843127,-440.0,0.00023013,2]
[364659378,1749187843138,-535.7082571,0.00023013,2]
[364659380,1749187843148,-440.0,0.00023013,2]
[364659382,1749187843157,-390.0,0.00023013,2]
[364659384,1749187843166,-440.0,0.00023013,2]
[364659386,1749187843175,-440.0,0.00023013,2]
[364659388,1749187843184,-440.0,0.00023013,2]
[364659390,1749187843193,-440.0,0.00023013,2]
[364659392,1749187843202,-1334.03880503,0.00023026,2]
[364659394,1749187843211,-1334.03880503,0.00023029,2]
[364659395,1749187843220,-1334.03880503,0.00023029,2]
[364659397,1749187843230,-1334.03880503,0.00023029,2]
[364659399,1749187843240,-202.48018403,0.00023038,8]
[364659401,1749187843249,-1334.03880503,0.00023068,2]
[364659403,1749187843259,-1334.03880503,0.00023069,2]
[364659405,1749187843268,-1334.03880503,0.00023084,2]
[364659407,1749187843277,-1334.03880503,0.00023095,2]
[364659409,1749187843287,-1334.03880503,0.00023099,2]
[364659411,1749187843296,-68.65007394,0.00023107,8]
[364659432,1749187843508,-440.0,0.00021917,2]
[364659434,1749187843518,-440.0,0.00021917,2]
[364659436,1749187843528,-440.0,0.00022191,2]
[364659438,1749187843537,-438.29222238,0.00022191,2]
[364659440,1749187843547,-440.0,0.00022465,2]
[364659441,1749187843556,-440.0,0.00022739,2]
[364659443,1749187843565,-390.0,0.00023013,2]
[364659445,1749187843575,-133.83011009,0.00023107,8]
[364659447,1749187843585,-1090.90301705,0.00023122,2]
[364659449,1749187843595,-500.0,0.00023122,2]
[364659451,1749187843604,-500.0,0.00023122,2]
[364659453,1749187843614,-500.0,0.00023122,2]
[364659455,1749187843625,-500.0,0.00023122,2]
[364659457,1749187843635,-500.0,0.00023122,2]
[364659459,1749187843644,-500.0,0.00023122,2]
[364659461,1749187843654,-500.0,0.00023122,2]
[364659463,1749187843664,-500.0,0.00023122,2]
[364659464,1749187843673,-500.0,0.00023122,2]
[364659466,1749187843683,-500.0,0.00023122,2]
[364659468,1749187843692,-500.0,0.00023122,2]
[364659470,1749187843702,-531.42873487,0.00023122,2]
[364659472,1749187843712,-207.4,0.00023122,2]
[364659474,1749187843722,-202.48018403,0.00023176,8]
[364659476,1749187843732,-202.48018403,0.00023245,8]
[364659478,1749187843742,-150.0,0.00023285,2]
[364659480,1749187843751,-323.67650584,0.00023287,2]
[364659482,1749187843761,-440.0,0.00023287,2]
[364659484,1749187843770,-440.0,0.00023287,2]
[364659486,1749187843779,-440.0,0.00023287,2]
[364659488,1749187843788,-440.0,0.00023287,2]
[364659490,1749187843797,-440.0,0.00023287,2]
[364659491,1749187843806,-892.97,0.00023287,2]
[364659493,1749187843815,-440.0,0.00023287,2]
[364659495,1749187843824,-440.0,0.00023287,2]
[364659497,1749187843833,-380.0,0.00023287,2]
[364659499,1749187843843,-380.0,0.00023287,2]
[364659501,1749187843852,-440.0,0.00023287,2]
[364659503,1749187843861,-380.0,0.00023287,2]
[364659506,1749187843871,-250.67,0.00023287,2]
[364659508,1749187843880,-380.0,0.00023287,2]
[364659510,1749187843890,-440.0,0.00023287,2]
[364659512,1749187843900,-380.0,0.00023287,2]
[364659514,1749187843909,-380.0,0.00023287,2]
[364659516,1749187843918,-380.0,0.00023287,2]
[364659518,1749187843928,-440.0,0.00023287,2]
[364659520,1749187843937,-440.0,0.00023287,2]
[364659521,1749187843948,-380.0,0.00023287,2]
[364659523,1749187843957,-440.0,0.00023287,2]
[364659525,1749187843967,-408.0,0.00023287,2]
[364659527,1749187843976,-440.0,0.00023287,2]
[364659529,1749187843986,-440.0,0.00023287,2]